[Event "76th Montenegro Championship 2024"]
[Site "Podgorica"]
[Date "2024.02.06"]
[Round "1.13"]
[White "Djurovic, Peko"]
[Black "Popovic, Mateja"]
[Result "1-0"]
[ECO "B48"]
[WhiteElo "2332"]
[BlackElo "1880"]
[Annotator "TA"]
[PlyCount "54"]
[EventDate "2024.02.06"]
[EventType "swiss"]
[EventCountry "MNE"]
[SourceTitle "playchess.com"]
[Source "ChessBase"]
[SourceQuality "1"]
[TimeControl "40/5400+30:1800+30"]

{[%evp 11,54,21,41,20,30,31,41,45,29,53,115,-6,120,118,147,152,260,265,237,93,101,116,106,91,120,105,211,195,215,183,293,287,408,399,751,747,746,679,783,741,1144,1055,1140,774,1206]} 1. e4 {[%emt 0:00:03]} c5 {[%emt 0:00:11]} 2. Nf3 {[%emt 0:00:11]} e6 {[%emt 0:00:07]} 3. d4 {[%emt 0:00:15]} cxd4 {[%emt 0:00:13]} 4. Nxd4 {[%emt 0:00:13]} Nc6 {[%emt 0:00:14]} 5. Nc3 {[%emt 0:00:27]} Qc7 {[%emt 0:00:27]} 6. Be3 {[%emt 0:00:51]} a6 {[%emt 0:01:34]} 7. Qf3 {[%emt 0:01:35]} Nf6 {[%emt 0:01:16][%cal Of8a3]} 8. O-O-O {[%emt 0:00:33]} Ne5 {[%emt 0:00:29]} 9. Qg3 {[%emt 0:00:20] White is slightly better.} b5 {[%emt 1:30:29] Hoping for ...b4.} 10. f4 {[%emt 0:06:11]} Nc4 {[%emt 0:00:00]} ({Better is} 10... Neg4 $14) 11. e5 {[%emt 0:03:57] [#]} ({White has to play} 11. Bxc4 $16 Qxc4 12. e5) 11... Nxb2 {[%emt 0:00:00]} 12. exf6 $16 {[%emt 0:42:27]} (12. Kxb2 Ba3+ 13. Kb1 (13. Kxa3 $2 Qxc3+ 14. Nb3 Ne4 $19) 13... Qxc3 $17) 12... Qxc3 {[%emt 0:00:00]} 13. fxg7 {[%emt 0:02:08]} Rg8 {[%emt 0:00:00]} (13... Qa3 $16 {might work better.} 14. gxf8=B (14. gxh8=N $2 Nc4+ 15. Kb1 Qb2#) (14. gxf8=R+ Rxf8 15. Bf2 Qxa2 $18) (14. gxh8=Q $2 Nc4+ 15. Kb1 Qb2#) 14... Rxf8) 14. gxf8=Q+ {[%emt 0:01:04]} Kxf8 {[%emt 0:00:00] [#]} 15. Qf2 {[%emt 0:04:28]} (15. Qf3 $1 $18 {[%cal Rf3a8] and the rest is easy.} Nxd1 16. Kxd1 (16. Qxa8 $2 Nxe3 17. Bd3 Qa1+ 18. Kd2 Qxd4 $19)) 15... Nxd1 {[%emt 0:00:00]} 16. Kxd1 {[%emt 0:00:05]} Bb7 {[%emt 0:00:00] [#]} 17. Nb3 $1 {[%emt 0:03:15]} d6 {[%emt 0:00:00] Dodges Bc5} 18. Bd2 {[%emt 0:05:17]} Qg7 {[%emt 0:00:00]} (18... Qb2 $16) 19. Bb4 $18 {[%emt 0:03:27]} Ke8 {[%emt 0:00:00]} 20. Rg1 {[%emt 0:07:06][%cal Of1d3]} (20. Bxd6 Bxg2 21. Rg1 Rd8) 20... Rc8 {[%emt 0:00:00]} (20... Qb2 $142 21. Bxd6 Rd8) 21. Bd3 {[%emt 0:01:46][%cal Of2b6] aiming for Qb6!} (21. Bxd6 Be4 $18) 21... e5 {[%emt 0:00:00]} (21... f5 $142 22. Kc1 (22. Bxd6 Qd7 $18) 22... Qd7) 22. Qb6 {[%emt 0:05:16]} (22. Bxd6 e4 23. Qb6 f5 $18) 22... Bf3+ {[%emt 0:00:00] Black is weak on the dark squares} (22... f5 23. Bxf5 (23. Qxd6 Rc6 $18) 23... Qc7) 23. Kc1 {[%emt 0:00:24] White is clearly winning.} (23. gxf3 Qxg1+ 24. Qxg1 Rxg1+ 25. Kd2 exf4 26. Bxh7 Ke7 $11) 23... Rc6 {[%emt 0:00:00]} 24. Qe3 {[%emt 0:00:12]} Bd5 {[%emt 0:00:58]} 25. Nd4 {[%emt 0:00:55]} Rc7 {[%emt 0:02:36]} 26. Nf5 {[%emt 0:01:03]} Qf6 {[%emt 0:01:48]} 27. Bxd6 {[%emt 0:02:18] This pair of bishops is nice.} Rc3 {[%emt 0:02:21] Weighted Error Value: White=0.26 (precise) /Black=0.61.  Mistake:       	White=2     	Black=7      Inaccurate:     	---       	Black=1      OK:         	White=8     	Black=1      Best:        	White=2     	Black=3      Strong:       	White=1     	---} 1-0

[Event "76th Montenegro Championship 2024"]
[Site "Podgorica"]
[Date "2024.02.06"]
[Round "1.14"]
[White "Milovic, Ilija"]
[Black "Draganic, Veljko"]
[Result "0-1"]
[ECO "D10"]
[WhiteElo "1823"]
[BlackElo "2323"]
[Annotator "TA"]
[PlyCount "92"]
[EventDate "2024.02.06"]
[EventType "swiss"]
[EventCountry "MNE"]
[SourceTitle "playchess.com"]
[Source "ChessBase"]
[SourceQuality "1"]
[TimeControl "40/5400+30:1800+30"]

{[%evp 9,91,16,30,22,58,55,63,25,32,25,35,49,57,0,0,-86,-108,-126,-72,-161,-136,-135,-139,-173,-187,-265,-238,-262,-254,-263,-187,-216,-160,-153,-139,-193,-190,-181,-170,-251,-255,-263,-262,-273,-251,-285,-255,-313,-314,-334,-292,-332,-302,-292,-214,-323,-329,-347,-188,-187,-184,-617,-493,-489,-458,-29976,-29977,-29992,-29993,-29993,-29980,-29980,-29977,-29993,-29994,-29994,-29994,-29995,-29996,-29996,-29997,-29997,-29989,-29999]} 1. d4 {[%emt 0:00:06]} d5 {[%emt 0:00:05]} 2. c4 {[%emt 0:00:23]} c6 {[%emt 0:00:03]} 3. cxd5 {[%emt 0:00:26]} cxd5 {[%emt 0:00:03]} 4. Bf4 {[%emt 0:00:27]} Nc6 {[%emt 0:00:04]} 5. e3 {[%emt 0:00:45]} Qb6 {[%emt 0:03:15]} 6. Nc3 {[%emt 0:02:15]} e6 {[%emt 0:08:04]} 7. Bd3 {[%emt 0:17:45]} Bd7 {[%emt 0:03:02]} 8. Nge2 {[%emt 0:02:19] White is slightly better.} Nf6 {[%emt 0:01:23][%cal Oa8c8]} 9. O-O {[%emt 0:01:58]} Rc8 {[%emt 0:01:00][%cal Of6h5]} 10. Rc1 {[%emt 0:02:49]} Na5 {[%emt 0:09:21][%cal Oa5c4] [#]} 11. Nb5 {[%emt 0:13:27]} Nc4 $1 $11 {[%emt 0:08:08]} (11... Rxc1 12. Qxc1 Nc4 (12... Bxb5 $2 13. Qc8+ Ke7 14. Bc7 $18) 13. Nc7+ Kd8 14. Bxc4 dxc4 15. Qxc4) 12. Nc7+ {[%emt 0:03:16]} Kd8 $17 {[%emt 0:04:07]} 13. Bxc4 {[%emt 0:21:40]} dxc4 {[%emt 0:00:03]} 14. d5 {[%emt 0:01:26] [#]} (14. Rxc4 $17 Bd6 15. Bxd6 Qxd6 16. e4) 14... e5 $1 $19 {[%emt 0:14:01]} 15. Bxe5 {[%emt 0:01:06] [#]} Bd6 $1 {[%emt 0:04:35]} 16. Ne6+ {[%emt 0:04:00]} fxe6 {[%emt 0:00:10]} 17. dxe6 {[%emt 0:00:14]} (17. Bd4 {was called for.} Qa6 18. Bxf6+ gxf6 19. dxe6 Bxe6 20. Nd4) 17... Bxe5 {[%emt 0:00:15]} 18. exd7 {[%emt 0:01:09]} Nxd7 {[%emt 0:06:01]} (18... Bxb2 $2 19. dxc8=N+ (19. dxc8=R+ Kxc8 20. Rxc4+ Kb8 $18) 19... Kxc8 20. Rxc4+ Kb8 21. Qc2 $18) 19. Qa4 {[%emt 0:05:53]} Re8 {[%emt 0:11:36]} (19... Bxb2 20. Rxc4 Rxc4 21. Qxc4 $19) (19... Qxb2 20. Rfd1 Rc6 21. Rc2 $17) 20. Rfd1 {[%emt 0:02:57]} Re7 {[%emt 0:01:13]} 21. Rxc4 {[%emt 0:01:19]} Rc6 {[%emt 0:07:05]} 22. Rb4 {[%emt 0:03:01]} (22. Rxc6 $17 bxc6 23. g3) 22... Qa6 {[%emt 0:01:30]} 23. Qxa6 {[%emt 0:03:44]} Rxa6 {[%emt 0:00:52]} 24. Rxb7 {[%emt 0:02:00]} (24. Nc1 {might work better.}) 24... Rxa2 {[%emt 0:01:17]} 25. Nc3 {[%emt 0:01:09]} Bxc3 {[%emt 0:00:22]} 26. bxc3 {[%emt 0:00:01]} Kc8 {[%emt 0:00:39]} 27. Rb5 {[%emt 0:01:39]} Nb6 {[%emt 0:02:18]} 28. g3 {[%emt 0:03:23]} Rf7 {[%emt 0:01:47]} 29. f4 {[%emt 0:01:27]} Rd7 {[%emt 0:00:21]} 30. Rxd7 {[%emt 0:00:34]} Nxd7 {[%emt 0:00:52][%mdl 4096] Endgame. KRN-KR} ({But not} 30... Kxd7 31. h4 $19) 31. e4 {[%emt 0:00:58]} Kc7 {[%emt 0:00:14] Strongly threatening ...a5.} 32. Rg5 {[%emt 0:00:36]} (32. c4 {was necessary.}) 32... g6 {[%emt 0:00:47]} 33. h4 {[%emt 0:00:39]} Nf6 {[%emt 0:01:41]} (33... a5 $142 {...a4 would now be deadly.} 34. h5 a4) 34. f5 {[%emt 0:01:05]} gxf5 {[%emt 0:03:01]} ({Resist} 34... Nxe4 35. fxg6 hxg6 (35... Nxc3 $2 {is the wrong capture.} 36. gxh7 Ra1+ 37. Kg2 $18) 36. Rxg6 $15) 35. exf5 {[%emt 0:00:16]} (35. Rxf5 Nxe4 36. Rf7+ Kb6 37. Rxh7) 35... Kd6 {[%emt 0:00:34]} 36. Rg7 {[%emt 0:00:31]} Ke5 {[%emt 0:00:07]} 37. g4 {[%emt 0:00:20]} (37. Kf1 $19 h5 (37... Kxf5 $2 38. g4+ Nxg4 39. Rxh7 $19) 38. Ke1) 37... Kf4 {[%emt 0:00:33] Black mates.} 38. g5 {[%emt 0:00:29]} Ng4 {[%emt 0:01:22]} 39. Rd7 {[%emt 0:00:54]} Ne3 {[%emt 0:01:02]} 40. Re7 {[%emt 0:00:00]} Re2 {[%emt 0:00:00]} 41. Rxa7 {[%emt 0:06:46]} Kg3 {[%emt 0:01:55][%cal Re2e1]} 42. Ra1 {[%emt 0:00:21]} Rg2+ {[%emt 0:00:16]} 43. Kh1 {[%emt 0:00:27]} Ng4 {[%emt 0:00:21][%cal Rg4f2]} 44. Rf1 {[%emt 0:00:38]} Nf2+ {[%emt 0:00:06]} 45. Rxf2 {[%emt 0:00:07]} Rxf2 {[%emt 0:00:03][%cal Rf2f1]} 46. g6 {[%emt 0:00:16]} Rf1# {[%emt 0:00:05] Weighted Error Value: White=0.52/Black=0.17 (very precise) .  Mistake:       	White=9     	Black=1      Inaccurate:     	White=1     	Black=2      OK:         	White=10    	Black=11     Best:        	---       	Black=4      Strong:       	---       	Black=2} 0-1

[Event "76th Montenegro Championship 2024"]
[Site "Podgorica"]
[Date "2024.02.06"]
[Round "1.15"]
[White "Skvortsov, Andrei"]
[Black "Petrovic, Slavko"]
[Result "1-0"]
[ECO "B21"]
[WhiteElo "2307"]
[BlackElo "1836"]
[Annotator "TA"]
[PlyCount "47"]
[EventDate "2024.02.06"]
[EventType "swiss"]
[EventCountry "MNE"]
[SourceTitle "playchess.com"]
[Source "ChessBase"]
[SourceQuality "1"]
[TimeControl "40/5400+30:1800+30"]

{[%evp 9,47,15,22,23,25,22,54,58,42,43,55,43,91,81,88,79,82,53,144,143,478,487,486,487,472,490,482,482,479,471,559,491,486,451,459,422,572,569,704,699]} 1. e4 {[%emt 0:00:05]} c5 {[%emt 0:00:18]} 2. d4 {[%emt 0:00:04]} cxd4 {[%emt 0:00:14]} 3. Qxd4 {[%emt 0:00:04]} a6 {[%emt 0:02:29]} 4. c4 {[%emt 0:00:50]} Nc6 {[%emt 0:00:16]} 5. Qe3 {[%emt 0:00:04]} Nf6 {[%emt 0:01:12]} 6. Nc3 {[%emt 0:00:34]} e6 {[%emt 0:00:42]} 7. Nf3 {[%emt 0:00:39]} Qc7 {[%emt 0:00:21]} 8. Be2 {[%emt 0:00:52] White is slightly better.} b6 {[%emt 0:06:59]} 9. O-O {[%emt 0:02:01]} Bc5 {[%emt 0:16:26]} 10. Qg5 {[%emt 0:00:48]} Kf8 {[%emt 0:13:33]} (10... O-O $14) 11. e5 $16 {[%emt 0:01:36]} h6 {[%emt 0:02:26]} 12. Qf4 $36 {[%emt 0:02:56][%mdl 2048] Keeping Black busy.} Ne8 {[%emt 0:06:29]} 13. Be3 {[%emt 0:01:58] Black must now prevent Bxc5+.} Be7 {[%emt 0:00:13]} ({Better is} 13... d6 $14) 14. Nd5 {[%emt 0:09:09] White has more active pieces.} g5 $2 {[%emt 0:07:56][%mdl 8192] [#] A mistake that costs the game.} (14... exd5 $16 {is a better chance.} 15. cxd5 Nd8) 15. Nxc7 $18 {[%emt 0:00:10][%cal Bd5c7,Bc7a8,Ba8b6,Bb6d7][%mdl 32] White is clearly winning.} gxf4 {[%emt 0:00:21]} 16. Nxa8 {[%emt 0:00:18]} fxe3 {[%emt 0:00:29]} 17. Nxb6 {[%emt 0:00:08]} exf2+ {[%emt 0:01:25]} 18. Rxf2 {[%emt 0:00:09]} Bb7 {[%emt 0:05:09]} 19. Nxd7+ {[%emt 0:00:05]} Kg8 {[%emt 0:00:46]} 20. Rff1 {[%emt 0:01:04]} Rh7 {[%emt 0:01:23][%cal Bh8h7,Bh7g7,Bg7g4][%mdl 32]} 21. Bd3 {[%emt 0:00:29]} Rg7 {[%emt 0:00:13]} 22. Be4 {[%emt 0:00:13]} Rg4 {[%emt 0:01:00]} 23. Rae1 {[%emt 0:01:25]} Ng7 {[%emt 0:04:57]} 24. h3 {[%emt 0:00:26] Weighted Error Value: White=0.12 (very precise) /Black=0.53.  Loses game:     	---       	Black=1      Mistake:       	---       	Black=2      Inaccurate:     	White=1     	Black=2      OK:         	White=9     	Black=4      Best:        	White=2     	Black=1} 1-0

[Event "76th Montenegro Championship 2024"]
[Site "Podgorica"]
[Date "2024.02.06"]
[Round "1.16"]
[White "Cadjenovic, Dragan"]
[Black "Nikac, Predrag"]
[Result "0-1"]
[ECO "A10"]
[WhiteElo "1809"]
[BlackElo "2304"]
[Annotator "TA"]
[PlyCount "52"]
[EventDate "2024.02.06"]
[EventType "swiss"]
[EventCountry "MNE"]
[SourceTitle "playchess.com"]
[Source "ChessBase"]
[SourceQuality "1"]
[TimeControl "40/5400+30:1800+30"]

{[%evp 9,52,-15,0,-10,-8,-33,-32,-52,-33,-53,-43,-48,-38,-41,-40,-57,-25,-58,-54,-59,-39,-118,-127,-145,-110,-268,-255,-296,-290,-260,-272,-265,-271,-605,-591,-844,-843,-1735,-1606,-29991,-29982,-29987,-29988,-29996,-29987]} 1. Nf3 {[%emt 1:31:00]} g6 {[%emt 0:08:34]} 2. c4 {[%emt 0:00:00]} Bg7 {[%emt 0:00:12]} 3. Nc3 {[%emt 0:00:00]} d6 {[%emt 0:00:10]} 4. d3 {[%emt 0:00:00]} f5 {[%emt 0:04:30]} 5. Qb3 {[%emt 0:00:00]} Nc6 {[%emt 0:00:35]} 6. Bd2 {[%emt 0:00:00]} Nf6 {[%emt 0:00:15]} 7. e3 {[%emt 0:00:00]} e5 {[%emt 0:00:33]} 8. Nd5 {[%emt 0:00:00] Black is slightly better.} a5 {[%emt 0:02:06]} 9. Nxf6+ {[%emt 0:00:00]} Qxf6 {[%emt 0:00:10]} 10. Bc3 {[%emt 0:00:00]} a4 {[%emt 0:00:30]} 11. Qc2 {[%emt 0:00:00]} g5 {[%emt 0:00:02]} 12. Be2 {[%emt 0:00:00]} O-O {[%emt 0:00:25]} (12... a3 $5) 13. O-O {[%emt 0:00:00]} g4 {[%emt 0:01:35]} 14. Ne1 {[%emt 0:00:00]} Qg6 {[%emt 0:00:40]} 15. Rd1 {[%emt 0:00:00]} ({Better is} 15. f4 $15) 15... f4 $17 {[%emt 0:04:11]} 16. exf4 {[%emt 0:00:00]} exf4 {[%emt 0:00:02] [#] Strongly threatening ...f3.} 17. Bxg7 $2 {[%emt 0:00:00] Now White is beyond hope.} (17. d4 $17) 17... Qxg7 $19 {[%emt 0:00:04]} 18. Qc3 {[%emt 0:00:00]} Nd4 {[%emt 0:00:18]} 19. Rd2 {[%emt 0:00:00]} f3 {[%emt 0:00:17]} 20. Bd1 {[%emt 0:00:00]} a3 {[%emt 0:00:49]} 21. Qc1 $2 {[%emt 0:00:00] [#]} (21. Kh1 fxg2+ 22. Nxg2) 21... fxg2 {[%emt 0:00:26]} 22. Kxg2 {[%emt 0:00:00]} Bd7 {[%emt 0:08:54]} 23. f3 {[%emt 0:00:00]} gxf3+ {[%emt 0:00:58]} 24. Kf2 {[%emt 0:00:00]} Qh6 {[%emt 0:02:11] Black mates.} 25. Rg1+ {[%emt 0:00:00]} Kh8 {[%emt 0:00:23]} 26. Qc3 {[%emt 0:00:00]} Qh4+ {[%emt 1:04:40] Weighted Error Value: White=1.09/Black=0.06 (flawless) .  Mistake:       	White=3     	---        Inaccurate:     	White=3     	Black=1      OK:         	White=6     	Black=5      Best:        	---       	Black=1} 0-1

[Event "76th Montenegro Championship 2024"]
[Site "Podgorica"]
[Date "2024.02.06"]
[Round "1.17"]
[White "Podlesnik, Bogdan"]
[Black "Lekic, Pavle"]
[Result "1-0"]
[ECO "C62"]
[WhiteElo "2284"]
[BlackElo "1661"]
[Annotator "COMBH"]
[PlyCount "57"]
[EventDate "2024.02.06"]
[EventType "swiss"]
[EventCountry "MNE"]
[SourceTitle "playchess.com"]
[Source "ChessBase"]
[SourceQuality "1"]
[TimeControl "40/5400+30:1800+30"]

1. e4 {[%emt 0:00:30]} e5 {[%emt 0:13:13]} 2. Nf3 {[%emt 0:00:24]} Nc6 {[%emt 0:00:18]} 3. Nc3 {[%emt 0:00:14]} Nf6 {[%emt 0:01:22]} 4. Bb5 {[%emt 0:00:06]} d6 {[%emt 0:03:02]} 5. d4 {[%emt 1:31:46]} exd4 {[%emt 0:02:44]} 6. Qxd4 {[%emt 0:00:00]} Bd7 {[%emt 0:02:31]} 7. Qd3 {[%emt 0:00:00]} Nb4 {[%emt 0:13:03]} 8. Qe2 {[%emt 0:00:00]} Be7 {[%emt 0:05:15]} 9. a3 {[%emt 0:00:00]} Nc6 {[%emt 0:01:44]} 10. Bf4 {[%emt 0:00:00]} O-O {[%emt 0:01:42]} 11. O-O-O {[%emt 0:00:00]} a6 {[%emt 0:12:27]} 12. Bxc6 {[%emt 0:00:00]} Bxc6 {[%emt 0:01:32]} 13. e5 {[%emt 0:00:00]} Nh5 {[%emt 0:12:26]} 14. Be3 {[%emt 0:00:00]} f5 {[%emt 0:05:53]} 15. Nd4 {[%emt 0:05:00]} f4 {[%emt 0:06:22]} 16. Nxc6 {[%emt 0:00:00]} bxc6 {[%emt 0:01:56]} 17. Bd4 {[%emt 0:00:00]} f3 {[%emt 0:04:14]} 18. Qc4+ {[%emt 0:00:00]} d5 {[%emt 0:04:32]} 19. Qxc6 {[%emt 0:00:00]} fxg2 {[%emt 0:01:18]} 20. Rhg1 {[%emt 0:00:00]} Bg5+ {[%emt 0:04:15]} 21. Kb1 {[%emt 0:00:00]} Nf4 {[%emt 0:00:28]} 22. Be3 {[%emt 0:00:00]} Rb8 {[%emt 0:00:39]} 23. Nxd5 {[%emt 0:00:00]} Nxd5 {[%emt 0:00:30]} 24. Qe6+ {[%emt 0:00:00]} Kh8 {[%emt 0:00:25]} 25. Rxd5 {[%emt 0:00:00]} Bxe3 {[%emt 0:00:33]} 26. Rxd8 {[%emt 0:00:00]} Rbxd8 {[%emt 0:00:25]} 27. Rxg2 {[%emt 0:00:00]} Bxf2 {[%emt 0:00:34]} 28. Qe7 {[%emt 0:00:00]} Rg8 {[%emt 0:00:33]} 29. Rxf2 {[%emt 0:00:00]} 1-0

[Event "76th Montenegro Championship 2024"]
[Site "Podgorica"]
[Date "2024.02.06"]
[Round "1.18"]
[White "Lakusic, Zoran"]
[Black "Vukcevic, Nemanja"]
[Result "0-1"]
[ECO "A05"]
[WhiteElo "1650"]
[BlackElo "2275"]
[Annotator "NA RC"]
[PlyCount "78"]
[EventDate "2024.02.06"]
[EventType "swiss"]
[EventCountry "MNE"]
[SourceTitle "playchess.com"]
[Source "ChessBase"]
[SourceQuality "1"]
[TimeControl "40/5400+30:1800+30"]

1. a3 {[%emt 0:00:20]} Nf6 {[%emt 0:00:28]} 2. Nf3 {[%emt 0:00:30]} g6 {[%emt 0:00:13]} 3. b3 {[%emt 0:00:41]} Bg7 {[%emt 0:00:15]} 4. Bb2 {[%emt 0:00:34]} O-O {[%emt 0:00:10]} 5. g3 {[%emt 0:00:45]} d6 {[%emt 0:00:07]} 6. Bg2 {[%emt 0:01:03]} e5 {[%emt 0:00:19]} 7. d3 {[%emt 0:02:21]} Nc6 {[%emt 0:02:20]} 8. Nbd2 {[%emt 0:05:28]} h6 {[%emt 0:01:26]} 9. O-O {[%emt 0:01:38]} Be6 {[%emt 0:00:26]} 10. d4 {[%emt 0:05:16]} e4 {[%emt 0:03:45]} 11. Ne1 {[%emt 0:02:01]} e3 {[%emt 0:02:01]} 12. fxe3 {[%emt 0:08:20]} Ng4 {[%emt 0:00:28]} 13. Rf3 {[%emt 0:01:07]} f5 {[%emt 0:12:19]} 14. h3 {[%emt 0:05:02]} Nf6 {[%emt 0:00:55]} 15. c4 {[%emt 0:00:55]} d5 {[%emt 0:07:22]} 16. Nd3 {[%emt 0:05:10]} g5 {[%emt 0:02:36]} 17. Rf2 {[%emt 0:02:32]} b6 {[%emt 0:08:59]} 18. Rc1 {[%emt 0:03:52]} Ne7 {[%emt 0:03:49]} 19. c5 {[%emt 0:02:17]} Nh5 {[%emt 0:07:36]} 20. Nf1 {[%emt 0:10:53]} Ng6 {[%emt 0:00:41]} 21. Bf3 {[%emt 0:03:59]} Nf6 {[%emt 0:03:11]} 22. Rh2 {[%emt 0:03:07]} Ne4 {[%emt 0:03:34]} 23. Bh5 {[%emt 0:01:46]} Ne7 {[%emt 0:11:51]} 24. Bf3 {[%emt 0:05:19]} Qd7 {[%emt 0:05:57]} 25. b4 {[%emt 0:03:28]} f4 {[%emt 0:06:29]} 26. exf4 {[%emt 0:05:06]} Bxh3 {[%emt 0:00:22]} 27. Bxe4 {[%emt 0:00:38]} dxe4 {[%emt 0:03:17]} 28. c6 {[%emt 0:06:00]} Qe6 {[%emt 0:02:22]} 29. Ne5 {[%emt 0:02:40]} gxf4 {[%emt 0:01:50]} 30. gxf4 {[%emt 0:00:44]} Rxf4 {[%emt 0:00:50]} 31. Qd2 {[%emt 0:02:48]} Bxe5 {[%emt 0:01:26]} 32. dxe5 {[%emt 0:01:07]} Qg4+ {[%emt 0:00:34]} 33. Kh1 {[%emt 0:00:21]} Bxf1 {[%emt 0:00:30]} 34. Qd1 {[%emt 0:00:57]} Raf8 {[%emt 0:01:02]} 35. Qd7 {[%emt 0:04:31]} Bxe2 {[%emt 0:04:10]} 36. Rg1 {[%emt 0:03:10]} Bf3+ {[%emt 0:00:20]} 37. Rhg2 {[%emt 0:00:11]} Ng6 {[%emt 0:00:27]} 38. Qd5+ {[%emt 0:00:32]} R8f7 {[%emt 0:00:22]} 39. e6 {[%emt 0:00:23]} Qh3# {[%emt 0:00:06]} 0-1

[Event "76th Montenegro Championship 2024"]
[Site "Podgorica"]
[Date "2024.02.07"]
[Round "2.1"]
[White "Draganic, Veljko"]
[Black "Kadric, Denis"]
[Result "0-1"]
[ECO "B06"]
[WhiteElo "2323"]
[BlackElo "2584"]
[Annotator "RC"]
[PlyCount "102"]
[EventDate "2024.02.06"]
[EventType "swiss"]
[EventCountry "MNE"]
[SourceTitle "playchess.com"]
[Source "ChessBase"]
[SourceQuality "1"]
[TimeControl "40/5400+30:1800+30"]

1. e4 {[%emt 0:02:07]} d6 {[%emt 0:00:08]} 2. d4 {[%emt 0:00:10]} g6 {[%emt 0:00:02]} 3. Nf3 {[%emt 0:00:20]} Bg7 {[%emt 0:00:05]} 4. Be2 {[%emt 0:00:11]} Nd7 {[%emt 0:01:29]} 5. O-O {[%emt 0:00:11]} e5 {[%emt 0:00:03]} 6. Nc3 {[%emt 0:01:01]} Ngf6 {[%emt 0:00:44]} 7. Re1 {[%emt 0:00:47]} O-O {[%emt 0:00:05]} 8. Bf1 {[%emt 0:01:12]} a6 {[%emt 0:01:54]} 9. a4 {[%emt 0:00:23]} b6 {[%emt 0:00:03]} 10. g3 {[%emt 0:07:32]} Bb7 {[%emt 0:01:41]} 11. Bg2 {[%emt 0:00:36]} c6 {[%emt 0:02:16]} 12. dxe5 {[%emt 0:13:59]} dxe5 {[%emt 0:00:11]} 13. b3 {[%emt 0:03:14]} Re8 {[%emt 0:00:55]} 14. Ba3 {[%emt 0:03:14]} b5 {[%emt 0:00:05]} 15. Qe2 {[%emt 0:03:33]} Qb6 {[%emt 0:01:09]} 16. Bb2 {[%emt 0:03:28]} Bf8 {[%emt 0:02:36]} 17. Nb1 {[%emt 0:11:09]} a5 {[%emt 0:15:34]} 18. Na3 {[%emt 0:09:35]} Ba6 {[%emt 0:04:07]} 19. axb5 {[%emt 0:09:50]} cxb5 {[%emt 0:00:04]} 20. c4 {[%emt 0:01:20]} b4 {[%emt 0:06:44]} 21. Nc2 {[%emt 0:08:04]} Nc5 {[%emt 0:02:38]} 22. Nxe5 {[%emt 0:00:54]} Nxb3 {[%emt 0:00:32]} 23. Rad1 {[%emt 0:01:03]} a4 {[%emt 0:02:01]} 24. Qf3 {[%emt 0:01:30]} Ra7 {[%emt 0:10:20]} 25. Nxg6 {[%emt 0:04:15]} fxg6 {[%emt 0:03:00]} 26. Bxf6 {[%emt 0:00:19]} Rf7 {[%emt 0:00:02]} 27. e5 {[%emt 0:00:30]} Bb7 {[%emt 0:00:17]} 28. Qf4 {[%emt 0:02:47]} Bxg2 {[%emt 0:00:44]} 29. Kxg2 {[%emt 0:00:05]} Nc5 {[%emt 0:01:53]} 30. Ne3 {[%emt 0:00:31]} b3 {[%emt 0:00:40]} 31. Nd5 {[%emt 0:01:23]} Qb7 {[%emt 0:00:40]} 32. h4 {[%emt 0:00:43]} Qc8 {[%emt 0:05:35]} 33. h5 {[%emt 0:01:11]} Qf5 {[%emt 0:00:08]} 34. hxg6 Qxg6 {[%emt 0:00:01]} 35. Qf3 {[%emt 0:01:07]} Bh6 {[%emt 0:02:43]} 36. Rd4 {[%emt 0:01:04]} Kf8 {[%emt 0:05:39]} 37. Qc3 {[%emt 0:03:45]} Rb7 {[%emt 0:00:14]} 38. Qa5 {[%emt 0:01:09]} Ne6 {[%emt 0:00:53]} 39. Rdd1 {[%emt 0:01:09]} b2 {[%emt 0:01:38]} 40. Rb1 {[%emt 0:00:00]} Bc1 {[%emt 0:00:00]} 41. Rexc1 {[%emt 0:11:37]} bxc1=Q {[%emt 0:03:10]} 42. Rxc1 {[%emt 0:00:15]} Qe4+ {[%emt 0:00:29]} 43. Kh2 {[%emt 0:01:48]} Qd4 {[%emt 0:06:43]} 44. Ne3 {[%emt 0:04:29]} Rb2 {[%emt 0:03:43]} 45. Nd1 {[%emt 0:04:46]} Qd2 {[%emt 0:08:08]} 46. Qxa4 {[%emt 0:00:22]} Ra2 {[%emt 0:00:08]} 47. Qb3 {[%emt 0:03:41]} Qxc1 {[%emt 0:00:20]} 48. Qf3 {[%emt 0:00:06]} Qc2 {[%emt 0:05:13]} 49. Kg2 {[%emt 0:02:08]} Qe2 {[%emt 0:01:12]} 50. Qf5 {[%emt 0:00:09]} Qxd1 {[%emt 0:00:44]} 51. Qxh7 {[%emt 0:00:32]} Nf4+ {[%emt 0:00:16]} 0-1